bitfinex-derivatives/quotes_BTCF0:USTF0_20241208
["timestamp","ask_amount","ask_price","bid_price","bid_amount"]
[1733637358318,0.00812687,99486.0,99485.0,0.05688262]
[1733637358604,0.37792687,99486.0,99485.0,0.06416353]
[1733637358811,0.37792687,99486.0,99485.0,0.05788262]
[1733637359405,0.01712687,99486.0,99485.0,0.06416347]
[1733637359799,0.01412687,99486.0,99485.0,0.06416347]
[1733637359998,0.01412687,99486.0,99485.0,0.16468063]
[1733637360508,0.01412687,99486.0,99485.0,0.13767116]
[1733637360808,0.01412687,99486.0,99485.0,0.16467735]
[1733637361213,0.01412687,99486.0,99485.0,0.1649621]
[1733637361530,0.01412687,99486.0,99485.0,0.16467735]
[1733637361809,0.01412687,99486.0,99485.0,0.17845436]
[1733637362709,0.01412687,99486.0,99485.0,0.15458826]
[1733637363011,0.01412687,99486.0,99485.0,0.17845299]
[1733637363212,0.0101,99506.0,99490.0,0.035153]
[1733637363404,0.3608,99507.0,99506.0,0.035147]
[1733637363604,0.3608,99507.0,99506.0,0.00314005]
[1733637363812,0.3608,99507.0,99506.0,0.035147]
[1733637364510,0.3608,99507.0,99506.0,0.036147]
[1733637366117,0.3608,99507.0,99506.0,0.037147]
[1733637366303,0.3678,99507.0,99506.0,0.037147]
[1733637366503,0.49279984,99507.0,99506.0,0.002]
[1733637366809,0.402947,99507.0,99485.0,0.00028477]
[1733637367009,0.3608,99494.0,99492.0,0.035152]
[1733637367214,0.0321,99493.0,99492.0,0.035152]
[1733637367902,0.067251,99493.0,99492.0,0.035152]
[1733637368102,0.067251,99493.0,99492.0,0.036152]
[1733637369508,0.067251,99493.0,99492.0,0.03643677]
[1733637369913,0.071251,99493.0,99492.0,0.03643677]
[1733637370123,0.071251,99493.0,99492.0,0.036152]
[1733637370913,0.0361,99493.0,99492.0,0.036152]
[1733637371507,0.18592173,99493.0,99492.0,0.036152]
[1733637371707,0.0361,99493.0,99492.0,0.04243259]
[1733637371911,0.15547835,99493.0,99492.0,0.036152]
[1733637372115,0.15547835,99493.0,99492.0,0.04243263]
[1733637372514,0.0361,99493.0,99492.0,0.04243263]
[1733637373315,0.0361,99493.0,99492.0,0.04243238]
[1733637373316,0.12344264,99493.0,99492.0,0.04243238]
[1733637373518,0.10083359,99493.0,99492.0,0.04243238]
[1733637373712,0.3608,99494.0,99493.0,0.035151]
[1733637373913,0.3608,99494.0,99493.0,0.0401752]
[1733637374216,0.14982173,99501.0,99493.0,0.0401752]
[1733637374420,0.21357893,99508.0,99494.0,0.0050242]
[1733637374421,0.14943199,99500.0,99494.0,0.0050242]
[1733637374718,0.14943199,99503.0,99501.0,0.035149]
[1733637374909,0.14943199,99503.0,99502.0,0.0050242]
[1733637375310,0.04883626,99506.0,99502.0,0.0050242]
[1733637375511,0.04883626,99506.0,99503.0,0.0050242]
[1733637375512,0.035148,99504.0,99503.0,0.0050242]
[1733637375715,0.035148,99504.0,99503.0,0.02072417]
[1733637375924,0.08398426,99504.0,99503.0,0.02072417]
[1733637376322,0.08398426,99504.0,99503.0,0.02072399]
[1733637376915,0.08998426,99504.0,99503.0,0.02072399]
[1733637377327,0.05483626,99504.0,99503.0,0.05587199]
[1733637377522,0.23451519,99504.0,99503.0,0.05587199]
[1733637378027,0.23451519,99504.0,99503.0,0.05687199]
[1733637378524,0.05483626,99504.0,99503.0,0.05687199]
[1733637378724,0.05483626,99504.0,99503.0,0.063152]
[1733637379022,0.41563626,99504.0,99503.0,0.05059202]
[1733637379527,0.41563626,99504.0,99503.0,0.036148]
[1733637379721,0.41563626,99504.0,99503.0,0.06315092]
[1733637380022,0.41563626,99504.0,99503.0,0.05687117]
[1733637381315,0.41563626,99504.0,99503.0,0.05587117]
[1733637382528,0.41563477,99504.0,99503.0,0.05587117]
[1733637382727,0.41163477,99504.0,99503.0,0.05587117]
[1733637383322,0.41163477,99504.0,99503.0,0.05587095]
[1733637383724,0.3628,99504.0,99503.0,0.15636992]
[1733637384331,0.002,99504.0,99503.0,0.15636992]
[1733637385729,0.15165959,99504.0,99503.0,0.15636992]
[1733637386227,0.002,99504.0,99503.0,0.15636992]
[1733637386625,0.002,99504.0,99503.0,0.16996681]
[1733637387028,0.12026548,99506.0,99505.0,0.035147]
[1733637387236,0.17951602,99513.0,99512.0,0.035145]
[1733637387425,0.17951602,99513.0,99512.0,0.05586795]
[1733637387426,0.0488292,99513.0,99512.0,0.05586795]
[1733637387628,0.0488292,99513.0,99512.0,0.12122192]
[1733637387827,0.04882832,99513.0,99512.0,0.12122192]
[1733637388137,0.04882818,99516.0,99515.0,0.035144]
[1733637388333,0.3608,99517.0,99516.0,0.0323]
[1733637388634,0.3608,99517.0,99516.0,0.08816595]
[1733637388635,0.04882814,99517.0,99516.0,0.08816595]
[1733637389027,0.04882814,99519.0,99516.0,0.05302295]
[1733637389227,0.17962929,99521.0,99518.0,0.035143]
[1733637389228,0.00011327,99521.0,99518.0,0.035143]
[1733637389432,0.04882341,99520.0,99519.0,0.02072295]
[1733637389638,0.04882341,99520.0,99519.0,0.05586495]
[1733637389829,0.04882327,99520.0,99519.0,0.15634448]
[1733637390134,0.00011327,99521.0,99520.0,0.035142]
[1733637390331,0.04893686,99521.0,99520.0,0.05586167]
[1733637390531,0.00011327,99521.0,99520.0,0.05586167]
[1733637390733,0.00011327,99521.0,99520.0,0.15634448]
[1733637392840,0.00111327,99521.0,99520.0,0.15634448]
[1733637393035,0.00111327,99521.0,99520.0,0.14818103]
[1733637393244,0.00111327,99521.0,99520.0,0.15634277]
[1733637393443,0.00111327,99521.0,99520.0,0.14818103]
[1733637393735,0.00111327,99521.0,99520.0,0.15634277]
[1733637399931,0.08857178,99527.0,99520.0,0.45634277]
[1733637400137,0.3709,99555.0,99541.0,0.035135]
[1733637400138,0.0101,99542.0,99541.0,0.035135]
[1733637400337,0.17951602,99554.0,99552.0,0.03513]
[1733637400536,0.3608,99555.0,99553.0,0.02071297]
[1733637400736,0.3608,99555.0,99554.0,0.02071297]
[1733637401949,0.3608,99555.0,99554.0,0.05584297]
[1733637403234,0.3608,99555.0,99554.0,0.04768332]
[1733637403439,0.3608,99555.0,99554.0,0.05584285]
[1733637403639,0.3608,99555.0,99554.0,0.05584272]
[1733637405849,0.3608,99555.0,99554.0,0.05612813]
[1733637406343,0.3608,99555.0,99554.0,0.05584272]
[1733637407142,0.3608,99555.0,99554.0,0.05612798]
[1733637407342,0.3608,99555.0,99554.0,0.05584272]
[1733637407540,0.3608,99555.0,99554.0,0.05612794]
[1733637407953,0.3608,99563.0,99561.0,0.035127]
[1733637408152,0.3608,99563.0,99562.0,0.02071272]
[1733637409147,0.3608,99563.0,99562.0,0.05583972]
[1733637409347,0.3628,99563.0,99562.0,0.05583972]
[1733637410046,0.3628,99563.0,99562.0,0.05583809]
[1733637410939,0.3628,99563.0,99562.0,0.06211432]
[1733637412546,0.3628,99563.0,99562.0,0.08676705]
[1733637413450,0.3628,99563.0,99562.0,0.08676768]
[1733637413752,0.3628,99563.0,99562.0,0.04956214]
[1733637413947,0.3628,99563.0,99562.0,0.035127]
[1733637414157,0.3628,99563.0,99562.0,0.04956278]
[1733637415745,0.3628,99563.0,99556.0,0.00028532]
[1733637415746,0.41161018,99563.0,99556.0,0.00028532]
[1733637415952,0.41161018,99563.0,99561.0,0.035127]
[1733637415953,0.04881018,99562.0,99561.0,0.035127]
[1733637416151,0.04881018,99562.0,99561.0,0.04767984]
[1733637418361,0.05081018,99562.0,99561.0,0.04767984]
[1733637421253,0.41161018,99562.0,99561.0,0.04767984]
[1733637421456,0.41161011,99562.0,99561.0,0.04767984]
[1733637422849,0.41161011,99562.0,99561.0,0.035127]
[1733637422850,0.3628,99562.0,99561.0,0.035127]
[1733637423051,0.51226312,99562.0,99561.0,0.035127]
[1733637423251,0.51226312,99562.0,99561.0,0.04767923]
[1733637423458,0.3628,99562.0,99561.0,0.04767923]
[1733637424067,0.3628,99562.0,99561.0,0.06087252]
[1733637426069,0.3628,99562.0,99561.0,0.06589306]
[1733637426370,0.3628,99562.0,99561.0,0.07852854]
[1733637426756,0.002,99562.0,99561.0,0.07852854]
[1733637426956,0.14946312,99566.0,99561.0,0.07852854]
[1733637427161,0.00507763,99567.0,99566.0,0.035126]
[1733637427362,0.00507763,99567.0,99566.0,0.06533425]
[1733637427363,7.763e-05,99567.0,99566.0,0.06533425]
[1733637427569,7.763e-05,99567.0,99566.0,0.05269877]
[1733637427767,7.763e-05,99567.0,99566.0,0.05583658]
[1733637427957,7.763e-05,99567.0,99566.0,0.0621122]
[1733637428162,7.763e-05,99567.0,99566.0,0.0631122]
[1733637428364,7.763e-05,99567.0,99566.0,0.07572135]
[1733637428568,0.0488813,99567.0,99566.0,0.07572135]
[1733637428766,7.763e-05,99567.0,99566.0,0.07572135]
[1733637429081,0.14980309,99567.0,99566.0,0.07572135]
[1733637429270,7.763e-05,99567.0,99566.0,0.07572135]
[1733637429569,0.04888079,99567.0,99566.0,0.07572135]
[1733637429766,7.763e-05,99567.0,99566.0,0.07572135]
[1733637430268,0.15191164,99567.0,99566.0,0.07572135]
[1733637430465,0.00207763,99567.0,99566.0,0.07572135]
[1733637430971,0.00207763,99567.0,99566.0,0.06944573]
[1733637431265,0.00207763,99567.0,99566.0,0.16999293]
[1733637431972,0.00207763,99567.0,99566.0,0.16899293]
[1733637432173,0.00207763,99567.0,99566.0,0.168992]
[1733637432563,0.00207763,99567.0,99566.0,0.16083433]
[1733637432758,0.00207763,99567.0,99566.0,0.16899201]
[1733637433166,0.00207763,99567.0,99566.0,0.16899199]
[1733637436071,0.00207763,99567.0,99566.0,0.16083255]
[1733637436276,0.00207763,99567.0,99566.0,0.16899018]
[1733637438874,0.0508819,99567.0,99566.0,0.06858273]
[1733637439068,0.0856819,99567.0,99566.0,0.07485861]
[1733637441672,0.0856819,99567.0,99566.0,0.06222153]
[1733637442267,0.0856819,99567.0,99566.0,0.06250752]
[1733637442469,0.0856819,99567.0,99566.0,0.06222153]
[1733637442669,0.0856819,99567.0,99566.0,0.06222429]
[1733637443078,0.0856819,99567.0,99566.0,0.03523782]
[1733637443382,0.0856819,99567.0,99566.0,0.06222436]
[1733637445378,0.08568347,99567.0,99566.0,0.06222436]
[1733637445980,0.03687763,99567.0,99566.0,0.06222436]
[1733637446170,0.03687763,99567.0,99566.0,0.04967248]
[1733637446481,0.03687763,99567.0,99566.0,0.06222421]
[1733637447079,0.03687763,99567.0,99566.0,0.06222403]
[1733637449976,0.03687763,99567.0,99566.0,0.06222405]
[1733637450870,0.06907763,99567.0,99566.0,0.06222405]
[1733637451392,0.2189374,99567.0,99566.0,0.06222405]
[1733637452290,0.2189374,99567.0,99566.0,0.06251024]
[1733637452580,0.06907763,99567.0,99566.0,0.06222405]
[1733637452784,0.21896232,99567.0,99566.0,0.06251024]
[1733637452985,0.06907763,99567.0,99566.0,0.06251024]
[1733637453385,0.06907763,99567.0,99566.0,0.04778955]
[1733637453688,0.06907763,99567.0,99566.0,0.06251034]
[1733637454187,0.11788362,99567.0,99566.0,0.06251034]
[1733637454880,0.11788362,99567.0,99566.0,0.07485361]
[1733637456479,0.11788362,99567.0,99566.0,0.07485365]
[1733637456980,0.29781007,99567.0,99566.0,0.07485365]
[1733637457578,0.11788362,99567.0,99566.0,0.07485365]
[1733637459588,0.47868362,99567.0,99566.0,0.07485365]
[1733637459788,0.47868362,99567.0,99566.0,0.06041911]
[1733637460086,0.65861007,99567.0,99566.0,0.07485361]
[1733637460783,0.47868355,99567.0,99566.0,0.07485361]
[1733637461289,0.51380855,99567.0,99566.0,0.07485361]
[1733637463187,0.51380855,99567.0,99566.0,0.07485406]
[1733637463892,0.51380855,99567.0,99566.0,0.03972806]
[1733637464087,0.51380855,99567.0,99547.0,0.045232]
[1733637464088,0.035132,99548.0,99547.0,0.045232]
[1733637464283,0.40961611,99548.0,99547.0,0.06038319]
[1733637464484,0.44474811,99548.0,99547.0,0.06038319]
[1733637465189,0.44474811,99548.0,99547.0,0.0604921]
[1733637465388,0.44474811,99548.0,99547.0,0.0624921]
[1733637466295,0.44474811,99548.0,99547.0,0.0604921]
[1733637466614,0.44474811,99548.0,99547.0,0.0614921]
[1733637467187,0.54569997,99548.0,99547.0,0.0263601]
[1733637467491,0.395932,99548.0,99547.0,0.0263601]
[1733637467791,0.44474995,99548.0,99547.0,0.0263601]
[1733637468486,0.62462546,99548.0,99547.0,0.00110891]
[1733637468789,0.44474995,99548.0,99547.0,0.00110891]
[1733637468989,0.62442771,99548.0,99547.0,0.00110891]
[1733637469192,0.44474995,99548.0,99547.0,0.00110891]
[1733637470597,0.44475237,99548.0,99547.0,0.00110891]
[1733637471094,0.54553881,99548.0,99547.0,0.00110891]
[1733637471994,0.90633881,99548.0,99547.0,0.00738661]
[1733637473188,0.756732,99548.0,99547.0,0.00738661]
[1733637473395,0.90633881,99548.0,99547.0,0.00738661]
[1733637473699,0.756732,99548.0,99547.0,0.00110891]
[1733637473888,0.756732,99548.0,99547.0,0.00738665]
[1733637474095,0.756732,99548.0,99547.0,0.01240882]
[1733637475998,0.756732,99548.0,99547.0,0.01554768]
[1733637475999,0.90633881,99548.0,99547.0,0.01554768]
[1733637476788,0.90633881,99548.0,99547.0,0.01554766]
[1733637477991,0.90626431,99548.0,99547.0,0.01554766]
[1733637480691,0.80555302,99548.0,99547.0,0.01554766]
[1733637482191,0.98496868,99548.0,99547.0,0.01554766]
[1733637482404,0.80555302,99548.0,99547.0,0.00926994]
[1733637482698,0.035137,99537.0,99536.0,0.035136]
[1733637482893,0.395937,99537.0,99536.0,0.035136]
[1733637483702,0.395937,99537.0,99536.0,0.03522435]
[1733637484393,0.395937,99537.0,99536.0,0.04222435]
[1733637484988,0.395937,99537.0,99536.0,0.0547808]
[1733637485203,0.395937,99537.0,99536.0,0.04222435]
[1733637485596,0.3608,99537.0,99536.0,0.04222435]
[1733637485798,0.3608,99537.0,99536.0,0.06754156]
[1733637485999,0.3608,99537.0,99536.0,0.06782724]
[1733637486204,0.3608,99537.0,99536.0,0.06754165]
[1733637490308,0.3608,99537.0,99536.0,0.05478045]
[1733637490501,0.3608,99537.0,99536.0,0.06749516]
[1733637490502,0.3382015,99537.0,99536.0,0.06749516]
[1733637490691,0.3382015,99537.0,99536.0,0.07377252]
[1733637492300,0.3382015,99537.0,99536.0,0.07377244]
[1733637492804,0.3382015,99537.0,99536.0,0.07879426]
[1733637493196,0.45780674,99537.0,99536.0,0.0787927]
[1733637493398,0.11960524,99539.0,99536.0,0.14412235]
[1733637493602,0.11960524,99539.0,99538.0,0.035136]
[1733637493797,0.11960524,99539.0,99538.0,0.07170435]
[1733637494300,0.11960524,99539.0,99538.0,0.17216798]
[1733637494604,0.11960524,99539.0,99538.0,0.17530653]
[1733637495310,0.11960524,99539.0,99538.0,0.17830653]
[1733637495502,0.005,99542.0,99538.0,0.17830653]
[1733637495701,0.005,99542.0,99541.0,0.035135]
[1733637495902,0.14950561,99544.0,99542.0,0.035134]
[1733637496101,0.14950561,99544.0,99543.0,0.0748409]
[1733637496401,0.005,99547.0,99546.0,0.035133]
[1733637496599,0.005,99547.0,99546.0,0.0748399]
[1733637496600,0.04881667,99547.0,99546.0,0.0748399]
[1733637498019,0.3608,99548.0,99547.0,0.035132]
[1733637498201,0.40961529,99548.0,99547.0,0.1073389]
[1733637498401,0.3608,99548.0,99547.0,0.1073389]
[1733637499406,0.3608,99548.0,99547.0,0.10733843]
[1733637500412,0.3608,99548.0,99547.0,0.10933843]
[1733637500800,0.3608,99548.0,99547.0,0.19707827]
[1733637500999,0.3608,99548.0,99547.0,0.24126897]
[1733637501204,0.3608,99548.0,99547.0,0.23926897]
[1733637501404,0.3608,99548.0,99547.0,0.24126897]
[1733637501612,0.005,99552.0,99547.0,0.24126897]
[1733637501810,0.005,99552.0,99551.0,0.035131]
[1733637502119,0.3608,99556.0,99555.0,0.03513]
[1733637502319,0.3608,99556.0,99555.0,0.07481242]
[1733637502616,0.3608,99556.0,99555.0,0.06037478]
[1733637502803,0.3608,99556.0,99555.0,0.0748099]
[1733637503005,0.3608,99556.0,99555.0,0.16270835]
[1733637503214,0.3608,99556.0,99555.0,0.17526064]
[1733637506110,0.3608,99556.0,99555.0,0.14827323]
[1733637506312,0.3608,99556.0,99555.0,0.17526077]
[1733637508813,0.005,99557.0,99556.0,0.035129]
[1733637509013,0.005,99562.0,99556.0,0.43560724]
[1733637509217,0.005,99562.0,99557.0,0.03967824]
[1733637509517,0.005,99562.0,99558.0,0.03967824]
[1733637509714,0.005,99562.0,99559.0,0.03967824]
[1733637509914,0.005,99562.0,99561.0,0.035127]
[1733637510117,7.763e-05,99567.0,99565.0,0.035126]
[1733637510118,0.12499124,99567.0,99565.0,0.035126]
[1733637510318,0.12499124,99567.0,99566.0,0.06211354]
[1733637510519,0.11999124,99567.0,99566.0,0.06211354]
[1733637511216,0.12199124,99567.0,99566.0,0.06211354]
[1733637513212,0.12199124,99567.0,99566.0,0.035126]
[1733637513520,0.12199124,99567.0,99566.0,0.06211156]
[1733637514230,0.00207763,99567.0,99566.0,0.06211156]
[1733637515229,0.00207763,99567.0,99566.0,0.07488574]
[1733637516331,0.00207763,99567.0,99566.0,0.07517103]
[1733637517430,0.00207763,99567.0,99566.0,0.07488534]
[1733637518640,0.12199124,99567.0,99566.0,0.07488534]
[1733637519140,0.00207763,99567.0,99566.0,0.07488534]
[1733637519741,0.00207763,99567.0,99566.0,0.06233431]
[1733637519942,0.00207763,99567.0,99566.0,0.07488619]
[1733637520339,0.00207763,99567.0,99566.0,0.07517179]
[1733637521329,0.00207763,99567.0,99566.0,0.07488619]
[1733637521732,0.00207763,99567.0,99566.0,0.07517179]
[1733637522134,0.00207763,99567.0,99566.0,0.01283748]
[1733637522329,0.03720263,99567.0,99566.0,0.01283764]
[1733637522647,0.03720263,99567.0,99566.0,0.01255188]
[1733637523039,0.03720263,99567.0,99566.0,0.01255229]
[1733637525742,0.00207763,99567.0,99566.0,0.04767829]
[1733637526433,0.00207763,99567.0,99566.0,0.035126]
[1733637526636,0.00207763,99567.0,99566.0,0.04796355]
[1733637527236,0.00207763,99567.0,99566.0,0.04767751]
[1733637528041,0.00207763,99567.0,99566.0,0.06019778]
[1733637528446,0.1220325,99567.0,99566.0,0.16063316]
[1733637528640,0.12203022,99567.0,99566.0,0.16063316]
[1733637528951,0.11995282,99569.0,99568.0,0.035125]
[1733637529134,0.005,99572.0,99568.0,0.035125]
[1733637529135,0.005,99572.0,99569.0,0.0337]
[1733637529342,0.11462603,99577.0,99570.0,0.29721062]
[1733637529549,0.11462603,99577.0,99576.0,0.57631911]
[1733637529750,0.0101,99585.0,99584.0,0.035119]
[1733637530052,0.14994439,99587.0,99584.0,0.01255151]
[1733637530243,0.14994439,99587.0,99585.0,0.01882573]
[1733637530443,0.14994439,99588.0,99587.0,0.035118]
[1733637530646,0.14994439,99588.0,99587.0,0.05394373]
[1733637530939,0.17940673,99595.0,99587.0,0.01882573]
[1733637531144,0.04879325,99594.0,99589.0,0.00028612]
[1733637531351,0.04879325,99593.0,99590.0,0.01882573]
[1733637531546,0.04879325,99592.0,99591.0,0.01882573]
[1733637531747,0.17940673,99597.0,99591.0,0.01882573]
[1733637531943,0.22819998,99596.0,99592.0,0.01882573]
[1733637532247,0.035115,99598.0,99593.0,0.02384524]
[1733637532248,0.0487932,99595.0,99593.0,0.02384524]
[1733637532448,0.0487932,99595.0,99589.0,0.035117]
[1733637532449,0.17940673,99597.0,99594.0,0.01129373]
[1733637532751,0.17940673,99596.0,99595.0,0.01129373]
[1733637533147,0.0487937,99596.0,99595.0,0.01129373]
[1733637533551,0.0487937,99596.0,99591.0,0.001]
[1733637533753,0.04879513,99595.0,99592.0,0.02384304]
[1733637533946,0.04879513,99594.0,99593.0,0.01129407]
[1733637534142,0.04879513,99595.0,99593.0,0.01443131]
[1733637534346,0.04879513,99594.0,99590.0,0.035117]
[1733637534645,0.3608,99591.0,99590.0,0.035117]
[1733637534850,0.40959513,99591.0,99590.0,0.06209756]
[1733637535047,0.3608,99591.0,99590.0,0.06238338]
[1733637535353,0.3608,99591.0,99590.0,0.06209756]
[1733637535548,0.40959415,99591.0,99590.0,0.06209756]
[1733637535850,0.3608,99591.0,99590.0,0.06309756]
[1733637536050,0.41359408,99591.0,99590.0,0.06309756]
[1733637536250,0.51454752,99591.0,99590.0,0.06309756]
[1733637536655,0.3648,99591.0,99590.0,0.06309755]
[1733637537251,0.3648,99591.0,99590.0,0.06209781]
[1733637537451,0.3648,99591.0,99590.0,0.06309781]
[1733637539454,0.51453413,99591.0,99590.0,0.06309781]
[1733637540359,0.399917,99591.0,99590.0,0.06309781]
[1733637542160,0.399917,99591.0,99590.0,0.06309809]
[1733637542664,0.54965113,99591.0,99590.0,0.06309814]
[1733637544359,0.44871373,99591.0,99586.0,0.01960856]
[1733637544560,0.14972986,99588.0,99583.0,0.005]
[1733637544759,0.035119,99584.0,99583.0,0.005]
[1733637544962,0.035119,99584.0,99577.0,0.01183933]
[1733637544963,0.035121,99579.0,99578.0,0.040121]
[1733637545166,0.395921,99579.0,99578.0,0.035121]
[1733637545557,0.429521,99579.0,99578.0,0.035121]
[1733637546361,0.58123747,99579.0,99578.0,0.035121]
[1733637547360,0.431521,99579.0,99578.0,0.04767316]
[1733637547556,0.431521,99579.0,99578.0,0.036121]
[1733637547958,0.58125211,99579.0,99578.0,0.036121]
[1733637548360,0.4803221,99579.0,99578.0,0.036121]
[1733637548659,0.48032226,99579.0,99578.0,0.001]
[1733637549059,0.41160126,99579.0,99577.0,0.03506946]
[1733637549266,0.5125457,99579.0,99577.0,0.03506946]
[1733637549557,0.3628,99579.0,99577.0,0.03506946]
[1733637550370,0.3628,99579.0,99577.0,0.03606946]
[1733637550967,0.3628,99579.0,99578.0,0.00028584]
[1733637551162,0.3608,99579.0,99578.0,0.00028584]
[1733637551364,0.3628,99579.0,99577.0,0.03606946]
[1733637551961,0.3608,99579.0,99577.0,0.03606946]
[1733637552161,0.3628,99579.0,99577.0,0.03606946]
[1733637553376,0.3628,99579.0,99578.0,0.001]
[1733637554069,0.3628,99579.0,99577.0,0.03606946]
[1733637554469,0.3608,99579.0,99578.0,0.00502009]
[1733637554770,0.3628,99579.0,99578.0,0.00602009]
[1733637555763,0.3608,99579.0,99578.0,0.00602009]
[1733637555963,0.3628,99579.0,99578.0,0.00602009]
[1733637556160,0.3628,99579.0,99578.0,0.00502009]
[1733637556363,0.3628,99579.0,99578.0,0.02070789]
[1733637556873,0.3628,99579.0,99578.0,0.02170789]
[1733637557259,0.3628,99579.0,99578.0,0.03430736]
[1733637557461,0.3608,99579.0,99578.0,0.06942836]
[1733637557667,0.3628,99579.0,99578.0,0.06942836]
[1733637558069,0.3628,99579.0,99578.0,0.06943392]
[1733637559374,0.5125457,99579.0,99578.0,0.06943396]
[1733637559571,0.5125457,99579.0,99578.0,0.06943388]
[1733637559876,0.3628,99579.0,99578.0,0.06943388]
[1733637562273,0.3628,99579.0,99578.0,0.05688368]
[1733637562577,0.3628,99579.0,99578.0,0.05682858]
[1733637562883,0.3628,99579.0,99578.0,0.05682847]
[1733637563177,0.3628,99579.0,99578.0,0.05711452]
[1733637564473,0.3628,99579.0,99578.0,0.05682847]
[1733637566269,0.41159929,99579.0,99578.0,0.05682847]
[1733637567168,0.41159929,99579.0,99578.0,0.04867099]
[1733637567468,0.41159929,99579.0,99578.0,0.05682858]
[1733637569772,0.41159929,99579.0,99578.0,0.04427859]
[1733637569974,0.41159929,99579.0,99578.0,0.05682855]
[1733637571471,0.41159929,99579.0,99578.0,0.0693905]
[1733637572678,0.41159929,99579.0,99578.0,0.06939048]
[1733637573080,0.41159929,99579.0,99578.0,0.06939047]
[1733637573387,0.3628,99579.0,99578.0,0.06939047]
[1733637574373,0.41159911,99579.0,99578.0,0.06939047]
[1733637574770,0.41159904,99579.0,99578.0,0.06939047]
[1733637575779,0.41159904,99579.0,99578.0,0.24978256]
[1733637576187,0.41159904,99579.0,99578.0,0.22907504]
[1733637576373,0.41159904,99579.0,99578.0,0.24978232]
[1733637577779,0.41159904,99579.0,99578.0,0.06939023]
[1733637577983,0.41159904,99579.0,99578.0,0.24978232]
[1733637579384,0.41159904,99579.0,99578.0,0.06939023]
[1733637579689,0.41159904,99579.0,99578.0,0.25006731]
[1733637579992,0.41159904,99579.0,99578.0,0.06939036]
[1733637580881,0.41159904,99579.0,99578.0,0.25006645]
[1733637581390,0.59127751,99579.0,99578.0,0.06939036]
[1733637581881,0.41159904,99579.0,99578.0,0.06939036]
[1733637582288,0.59127751,99579.0,99578.0,0.06939036]
[1733637582905,0.41159904,99579.0,99578.0,0.06939036]
[1733637583390,0.41159904,99579.0,99578.0,0.04868295]
[1733637583580,0.41159904,99579.0,99578.0,0.06939033]
[1733637586586,0.05079904,99579.0,99578.0,0.06939033]
[1733637589788,0.002,99579.0,99578.0,0.06939033]
[1733637590897,0.05079843,99579.0,99578.0,0.06939033]
[1733637591306,0.002,99579.0,99578.0,0.06939033]
[1733637593502,0.002,99579.0,99578.0,0.06939008]
[1733637593798,0.002,99579.0,99578.0,0.06939034]
[1733637593799,0.05079826,99579.0,99578.0,0.06939034]
[1733637594311,0.05079826,99579.0,99578.0,0.25007812]
[1733637594489,0.05079826,99579.0,99578.0,0.06939034]
[1733637596794,0.05079826,99579.0,99578.0,0.06939041]
[1733637598901,0.05079826,99579.0,99578.0,0.06939032]
[1733637599409,0.0507989,99579.0,99578.0,0.06939032]
[1733637600709,0.0507989,99579.0,99578.0,0.25007906]
[1733637600904,0.0507989,99579.0,99578.0,0.06939032]
[1733637601504,0.0507989,99579.0,99578.0,0.25007316]
[1733637602309,0.0507989,99579.0,99578.0,0.24191521]
[1733637602508,0.0507989,99579.0,99578.0,0.25007232]
[1733637602699,0.002,99579.0,99578.0,0.04867042]
[1733637602902,0.002,99579.0,99578.0,0.05682754]
[1733637603499,0.002,99579.0,99578.0,0.29736638]
[1733637604704,0.002,99579.0,99578.0,0.06939537]
[1733637605699,0.002,99579.0,99578.0,0.06939505]
[1733637606301,0.002,99579.0,99578.0,0.05684582]
[1733637606503,0.002,99579.0,99578.0,0.06939516]
[1733637607201,0.15001236,99581.0,99578.0,0.06939516]
[1733637607410,0.15001236,99581.0,99580.0,0.21576203]
[1733637607602,0.15001236,99581.0,99580.0,0.24903619]
[1733637608203,0.03512,99582.0,99580.0,0.03327416]
[1733637608505,0.03512,99582.0,99581.0,0.06839416]
[1733637608706,0.08391679,99582.0,99581.0,0.06839416]
[1733637609607,0.08391679,99582.0,99581.0,0.06939416]
[1733637610011,0.08691679,99582.0,99581.0,0.06939416]
[1733637611308,0.08691679,99582.0,99581.0,0.07566907]
[1733637612013,0.05179679,99582.0,99581.0,0.07566907]
[1733637612313,0.05179679,99582.0,99581.0,0.06123717]
[1733637612511,0.05179679,99582.0,99581.0,0.07566907]
[1733637613308,0.05179679,99582.0,99581.0,0.06123717]
[1733637613506,0.05179679,99582.0,99581.0,0.07566907]
[1733637614312,0.05179679,99582.0,99581.0,0.07566922]
[1733637615209,0.05179679,99582.0,99581.0,0.25631025]
[1733637615406,0.003,99582.0,99581.0,0.7649842]
[1733637615604,0.003,99582.0,99581.0,0.5369463]
[1733637615805,0.12301797,99582.0,99581.0,0.59806607]
[1733637616010,0.06655157,99583.0,99581.0,0.57235713]
[1733637616212,0.15000655,99590.0,99582.0,0.07460233]
[1733637616417,0.14997879,99591.0,99590.0,0.035117]
[1733637616614,0.14997879,99594.0,99593.0,0.035116]
[1733637616808,0.14997879,99594.0,99593.0,0.07459833]
[1733637617116,0.0339,99597.0,99596.0,0.035115]
[1733637617321,0.04879161,99598.0,99596.0,0.03948233]
[1733637617508,0.04879161,99598.0,99597.0,0.07459733]
[1733637618111,0.04879161,99598.0,99597.0,0.17500246]
[1733637618313,0.3608,99599.0,99598.0,0.035114]
[1733637618516,0.58926958,99599.0,99598.0,0.07459633]
[1733637618723,0.40959111,99599.0,99598.0,0.07459633]
[1733637619016,0.40959111,99599.0,99598.0,0.17500045]
[1733637619522,0.14986635,99599.0,99598.0,0.17574903]
[1733637619816,0.1,99600.0,99599.0,0.035114]
[1733637620112,0.24986635,99600.0,99599.0,0.07434491]
[1733637620315,0.1,99600.0,99599.0,0.07434491]
[1733637620505,0.1,99600.0,99599.0,0.17474802]
[1733637621013,0.24986635,99600.0,99599.0,0.17574802]
[1733637621222,0.1,99600.0,99599.0,0.17574802]
[1733637621411,0.24986635,99600.0,99599.0,0.17574802]
[1733637621605,0.1,99600.0,99599.0,0.17576049]
[1733637621811,0.24986635,99600.0,99599.0,0.17576049]
[1733637622015,0.1,99600.0,99599.0,0.17576049]
[1733637622415,0.1,99600.0,99599.0,0.17575533]
[1733637624216,0.1,99600.0,99599.0,0.16349334]
[1733637624821,0.1,99600.0,99599.0,0.17569838]
[1733637625119,0.1,99600.0,99599.0,0.16349334]
[1733637625519,0.1,99600.0,99599.0,0.14806272]
[1733637625719,0.1,99600.0,99599.0,0.16349016]
[1733637626023,0.1,99600.0,99599.0,0.16348988]
[1733637626817,0.1,99600.0,99599.0,0.343592]
[1733637627213,0.1,99600.0,99599.0,0.34355046]
[1733637627819,0.1,99600.0,99599.0,0.16348988]